bitfinex/quotes_ETHUSD_20250214
["timestamp","ask_amount","ask_price","bid_price","bid_amount"]
[1739543777658,0.8017,2709.3,2708.6,0.55]
[1739543777862,0.07387516,2709.1,2708.9,3.69151]
[1739543778059,0.07120823,2709.2,2709.0,3.69139]
[1739543778370,4.49235,2709.6,2709.1,0.55]
[1739543778699,3.69081,2709.5,2709.0,0.55]
[1739543779594,3.69096,2709.4,2708.8,0.55]
[1739543779756,3.691,2709.3,2708.8,0.974173]
[1739543779952,3.69122,2709.2,2708.8,0.974173]
[1739543780180,3.69122,2709.2,2708.7,0.55]
[1739543780722,0.8017,2709.0,2708.0,0.5252]
[1739543781015,3.69202,2708.6,2708.0,4.21791]
[1739543781179,3.6923,2708.4,2707.8,3.69295]
[1739543781430,3.6923,2708.4,2707.7,4.21827]
[1739543781640,3.69244,2708.3,2707.8,0.421827]
[1739543781752,3.69244,2708.3,2707.5,0.28]
[1739543781957,4.51674605,2708.5,2707.9,3.69288]
[1739543781958,4.51678605,2708.5,2707.9,3.69288]
[1739543782158,0.82463605,2708.5,2708.1,3.69253]
[1739543782358,0.82463605,2708.5,2708.0,0.55]
[1739543782594,0.82463605,2708.5,2708.1,3.69261]
[1739543782823,0.07133605,2708.5,2708.3,3.69227]
[1739543782967,3.69189,2708.7,2708.2,0.974261]
[1739543783167,3.69189,2708.7,2708.2,0.55]
[1739543783605,3.69196,2708.6,2708.0,1.0752]
[1739543783763,3.69219,2708.5,2708.0,0.5252]
[1739543783978,0.7533,2708.3,2707.7,0.5252]
[1739543784337,7.38514,2708.2,2707.6,3.6933]
[1739543784528,3.69256,2708.2,2707.7,0.55]
[1739543784734,0.7533,2708.3,2707.9,0.55]
[1739543784936,0.7533,2708.3,2708.1,0.55]
[1739543785138,0.06781841,2708.2,2708.1,0.55]
[1739543785355,0.06781841,2708.2,2708.0,0.55]
[1739543785565,4.44527,2708.6,2708.0,5.036324]
[1739543785775,0.06737376,2708.1,2708.0,5.561524]
[1739543786058,0.7533,2709.2,2708.8,0.55]
[1739543786236,4.44443,2709.2,2708.8,0.55]
[1739543786767,0.7533,2709.2,2708.8,4.24166]
[1739543787065,0.7533,2709.2,2708.9,0.793339]
[1739543787273,3.69161,2708.9,2708.8,0.34405801]
[1739543787755,4.44491,2708.9,2708.8,0.34405801]
[1739543788556,0.7533,2708.9,2708.8,0.34405801]
[1739543788697,0.06746344,2708.9,2708.8,0.89405801]
[1739543788896,0.06746344,2708.9,2708.8,0.55]
[1739543789137,3.69141,2709.0,2708.8,0.55]
[1739543789340,0.06629079,2708.9,2708.5,3.69207]
[1739543789494,0.06629079,2708.9,2708.6,0.55]
[1739543789694,0.06629079,2708.9,2708.6,4.24182]
[1739543789925,3.69113,2709.2,2708.7,0.55]
[1739543790196,0.06647,2709.1,2709.0,0.55]
[1739543790500,0.7533,2710.0,2709.1,0.5252]
[1739543790730,3.69017,2709.9,2709.1,0.5252]
[1739543791039,7.38108,2709.7,2709.0,3.69132]
[1739543791245,7.38108,2709.7,2709.1,3.69124]
[1739543791451,0.06658751,2709.6,2709.0,3.69138]
[1739543791737,3.69093,2709.4,2709.1,0.34405801]
[1739543791897,0.10356597,2709.6,2709.1,0.34405801]
[1739543791898,3.79421597,2709.6,2709.1,0.34405801]
[1739543792099,0.06659751,2709.3,2709.1,0.34405801]
[1739543792415,3.75760044,2709.2,2709.1,0.34405801]
[1739543792794,4.5478789,2709.2,2709.1,0.34405801]
[1739543793497,3.69167,2708.8,2708.7,0.34405801]
[1739543793941,8.85679798,2708.8,2708.7,0.34405801]
[1739543794941,11.85679798,2708.8,2708.7,0.34405801]
[1739543795109,8.13674,2708.8,2708.1,3.6925]
[1739543795311,3.69161,2708.9,2708.3,3.69228]
[1739543795515,0.8184,2709.1,2708.4,3.69219]
[1739543795516,3.69148,2709.0,2708.4,3.69219]
[1739543795709,3.69166,2708.9,2708.3,7.38453]
[1739543795909,0.06540702,2708.9,2708.3,3.69225]
[1739543796145,0.06540702,2708.9,2708.4,0.421745]
[1739543796304,3.69175,2708.8,2708.4,0.421745]
[1739543796536,4.51057,2708.5,2707.9,4.21799]
[1739543797071,0.06523121,2708.4,2707.9,0.5252]
[1739543797292,0.06523121,2708.4,2708.0,4.03669453]
[1739543797450,0.06523121,2708.4,2708.0,0.80022398]
[1739543797785,0.06523121,2708.4,2708.3,3.69235]
[1739543798069,4.50968,2709.1,2708.5,3.69205]
[1739543798237,0.8184,2709.1,2708.6,3.69184]
[1739543798443,3.69105,2709.3,2708.8,3.69165]
[1739543798858,0.8184,2709.4,2709.0,3.69128]
[1739543799441,0.06601711,2709.3,2709.0,4.21648]
[1739543799775,3.0,2710.2,2709.0,0.5252]
[1739543799776,0.8184,2710.2,2709.0,0.5252]
[1739543799929,0.06590004,2709.2,2709.1,3.69126]
[1739543800238,3.69012,2710.0,2709.4,3.69078]
[1739543800975,3.69012,2710.0,2709.1,1.13446954]
[1739543800976,0.8184,2710.2,2709.6,3.69058]
[1739543801174,0.8184,2711.0,2710.4,3.68942]
[1739543801380,0.1475855,2711.4,2710.7,3.68897]
[1739543801381,3.8357555,2711.4,2710.7,3.68897]
[1739543801688,3.68842,2711.2,2710.6,3.68919]
[1739543801843,3.68842,2711.2,2710.4,3.68949]
[1739543802171,3.68842,2711.2,2710.6,3.68912]
[1739543802383,3.8357355,2711.4,2710.6,3.68912]
[1739543802730,0.1475855,2711.4,2710.6,3.68912]
[1739543802930,3.6884,2711.2,2710.6,3.68912]
[1739543803135,0.06446662,2711.3,2710.7,3.68906]
[1739543803369,0.06426549,2711.1,2710.8,3.68885]
[1739543803545,0.06438239,2711.2,2711.0,3.68867]
[1739543803762,0.1475855,2711.4,2711.0,3.68867]
[1739543804433,0.1475855,2711.4,2710.9,0.5252]
[1739543804628,0.1475855,2711.4,2710.9,4.635336]
[1739543805381,0.1475855,2711.4,2710.9,4.635406]
[1739543805532,0.1475855,2711.4,2710.8,3.68883]
[1739543805533,3.8358055,2711.4,2710.8,3.68883]
[1739543805738,0.1475855,2711.4,2711.0,3.68867]
[1739543806480,0.1475855,2711.4,2710.8,3.6889]
[1739543806650,0.06577233,2711.3,2710.8,3.6889]
[1739543806846,0.06577233,2711.3,2710.9,4.05759]
[1739543807053,0.06577233,2711.3,2710.9,0.36889]
[1739543807961,3.68889,2710.9,2710.2,9.2752]
[1739543808195,3.68878,2711.0,2710.4,3.68939]
[1739543808381,0.065168,2710.8,2710.7,3.68908]
[1739543808690,4.6542155,2711.4,2710.8,3.68887]
[1739543808895,4.6542155,2711.4,2710.9,3.6888]
[1739543809196,0.9659855,2711.4,2710.9,3.68871]
[1739543810209,0.06587415,2711.3,2710.9,3.68871]
[1739543810368,0.06587415,2711.3,2710.9,4.426482]
[1739543810568,0.06587415,2711.3,2710.7,3.68901]
[1739543811088,0.06587415,2711.3,2710.1,0.0075]
[1739543811089,0.8223,2710.7,2709.8,3.6903]
[1739543811293,3.68873,2711.0,2709.8,3.6903]
[1739543811294,4.51103,2711.0,2709.8,3.6903]
[1739543811462,0.06498139,2710.6,2710.5,3.68935]
[1739543811794,4.51097,2711.0,2710.4,3.68948]
[1739543812023,3.68891,2710.9,2710.2,3.68965]
[1739543812321,3.68952,2710.4,2709.8,3.69022]
[1739543812615,0.8223,2711.0,2709.8,3.0]
[1739543812778,4.51109,2711.0,2710.2,3.68965]
[1739543813093,3.68884,2710.9,2710.3,0.423965]
[1739543813267,3.68864,2711.1,2710.5,3.68923]
[1739543813464,3.68886,2710.9,2710.4,3.68947]
[1739543813781,3.68859,2711.1,2710.6,3.68912]
[1739543813965,3.68859,2711.1,2710.6,0.737845]
[1739543815379,4.51067,2711.3,2710.8,4.43041392]
[1739543815783,0.8223,2711.3,2711.0,3.68866]
[1739543815996,0.1475855,2711.4,2711.3,3.68826]
[1739543816166,0.1475855,2711.4,2711.3,4.51532366]
[1739543816366,0.1475855,2711.4,2711.3,4.478446]
[1739543817013,0.1475855,2711.4,2711.3,5.035946]
[1739543818319,0.1475855,2711.4,2711.3,8.043446]
[1739543818472,5.5e-06,2711.4,2711.3,8.043446]
[1739543818675,5.5e-06,2711.4,2711.3,8.568646]
[1739543820520,5.5e-06,2711.4,2711.3,14.24087711]
[1739543820678,5.5e-06,2711.4,2711.3,23.29087711]
[1739543821602,5.5e-06,2711.4,2711.3,2.21419503]
[1739543821765,5.5e-06,2711.4,2711.3,5.90245503]
[1739543821966,5.5e-06,2711.4,2711.3,8.90245503]
[1739543822825,5.5e-06,2711.4,2711.3,5.19919503]
[1739543822982,5.5e-06,2711.4,2711.3,4.57206903]
[1739543823471,5.5e-06,2711.4,2711.3,0.88380903]
[1739543823813,5.5e-06,2711.4,2711.0,3.68862]
[1739543824017,5.5e-06,2711.4,2711.3,3.68826]
[1739543824217,5.5e-06,2711.4,2711.3,4.25033696]
[1739543824415,5.5e-06,2711.4,2711.3,8.5648337]
[1739543824615,5.5e-06,2711.4,2711.3,5.0396337]
[1739543824913,0.05487834,2711.4,2711.3,4.4821337]
[1739543825083,5.5e-06,2711.4,2711.1,3.0]
[1739543825285,0.8223055,2711.4,2710.9,5.85]
[1739543825490,0.0548247,2711.3,2710.9,5.85]
[1739543825808,0.7651,2711.2,2710.9,5.85]
[1739543826117,3.68864,2711.1,2710.9,5.85]
[1739543826421,3.68881,2710.9,2710.3,0.423965]
[1739543826713,0.05431148,2711.0,2710.4,3.68936]
[1739543826920,3.68857,2711.1,2710.3,0.423965]
[1739543826921,0.05407765,2710.8,2710.3,0.423965]
[1739543827119,0.05388323,2710.9,2710.4,3.68949]
[1739543827321,0.05378256,2710.7,2710.4,3.68949]
[1739543827486,0.05367721,2710.8,2710.5,0.4113455]
[1739543827822,0.05385108,2710.7,2710.5,0.4113455]
[1739543827977,3.68885,2710.9,2710.5,0.4113455]
[1739543828171,3.68908,2710.7,2710.0,3.68999]
[1739543828403,0.05396801,2710.8,2710.2,3.68964]
[1739543828605,0.05373415,2710.6,2710.3,0.71062693]
[1739543828915,3.68857,2711.1,2710.4,3.68936]
[1739543829100,0.05349722,2710.5,2710.4,3.68936]
[1739543829415,3.68881,2710.9,2710.3,0.34166293]
[1739543829416,3.68857,2711.1,2710.3,0.34166293]
[1739543829713,0.05349722,2710.5,2710.4,3.68948]
[1739543829918,3.68911,2710.7,2710.0,7.37989]
[1739543830124,3.68944,2710.5,2710.0,1.038739]
[1739543830290,3.68949,2710.4,2709.8,3.69029]
[1739543830494,0.0532451,2710.4,2709.8,3.69029]
[1739543830695,3.68963,2710.3,2709.6,3.69049]
[1739543830878,3.68977,2710.2,2709.9,0.34264704]
[1739543831073,3.7426029,2710.2,2709.9,0.34264704]
[1739543831390,0.7651,2710.1,2709.9,0.34264704]
[1739543831589,0.05226162,2710.0,2709.9,0.34264704]
[1739543832321,3.74239162,2710.0,2709.7,0.34264704]
[1739543832483,3.74235162,2710.0,2709.7,0.34264704]
[1739543832878,0.05226162,2710.0,2709.7,0.34264704]
[1739543833583,0.05226162,2710.0,2709.9,3.69017]
[1739543833774,0.7651,2710.4,2709.8,3.69018]
[1739543834205,0.7651,2710.4,2710.2,3.68975]
[1739543834426,0.7651,2710.4,2710.1,3.68987]
[1739543834723,0.7651,2710.4,2709.9,3.69005]
[1739543834877,0.7651,2710.4,2710.1,3.6899]
[1739543835074,0.7651,2710.4,2710.3,3.68962]
[1739543835303,0.7651,2710.8,2710.3,3.68959]
[1739543835507,0.04764379,2710.4,2710.3,3.68959]
[1739543835722,3.68909,2710.7,2710.2,3.68976]
[1739543835923,0.04764379,2710.4,2710.3,4.058596]
[1739543836086,0.7651,2710.8,2710.5,3.68933]
[1739543836292,0.7651,2710.8,2710.7,3.68908]
[1739543836521,0.7651,2711.3,2710.3,0.901676]
[1739543836726,3.68884,2710.9,2710.4,3.68939]
[1739543837023,3.68871,2711.0,2710.4,3.68939]
[1739543837230,3.68871,2711.0,2710.4,4.4273]
[1739543837385,3.68871,2711.0,2710.4,3.68939]
[1739543837738,0.7651,2711.3,2710.4,3.68939]
[1739543838021,7.37799,2710.8,2710.2,3.68967]
[1739543838191,3.68922,2710.6,2710.1,3.68989]
[1739543838395,4.4542,2710.7,2710.2,3.68976]
[1739543838582,4.4542,2710.7,2710.2,3.68969]
[1739543838583,0.7651,2710.7,2710.2,3.68969]
[1739543838786,0.7651,2710.7,2710.2,7.37932]
[1739543838986,0.7651,2710.7,2710.3,3.68961]
[1739543839186,0.04631359,2710.6,2710.2,3.68963]
[1739543839387,0.04631359,2710.6,2710.2,4.058593]
[1739543839610,0.04631359,2710.6,2710.2,4.058693]
[1739543839809,0.04631359,2710.6,2710.2,0.368963]
[1739543840028,0.04631359,2710.6,2710.3,3.6896]
[1739543840402,0.04631359,2710.6,2710.5,3.68935]
[1739543840604,0.04631359,2710.6,2710.5,4.427245]
[1739543840803,3.68878,2711.0,2710.5,0.737895]
[1739543841005,3.68916,2710.7,2710.2,0.34206649]
[1739543841339,3.68887,2710.9,2710.4,3.68941]
[1739543841688,4.50219,2711.1,2710.4,3.68941]
[1739543841918,3.68868,2711.0,2710.4,3.68941]
[1739543842308,3.68908,2710.7,2710.2,4.03173649]
[1739543842636,3.68895,2710.8,2710.2,8.49356814]
[1739543842834,3.68884,2710.9,2710.4,3.68948]
[1739543843042,3.68884,2710.9,2710.2,8.15147165]
[1739543843337,3.68895,2710.8,2710.3,3.68962]
[1739543843537,3.6887,2711.0,2710.4,3.68941]
[1739543843688,0.8136,2711.1,2710.4,0.81512017]
[1739543843894,0.8136,2711.1,2710.7,3.68899]
[1739543844336,0.8136,2711.1,2710.8,3.68886]
[1739543844539,0.8136,2711.1,2710.7,3.68904]
[1739543844708,4.50216,2711.1,2710.5,3.68922]
[1739543845108,3.68884,2710.9,2710.3,3.68953]
[1739543845309,0.8136,2711.1,2710.8,3.68884]
[1739543845751,0.8136,2711.1,2710.6,3.68917]
[1739543845752,0.8136,2711.1,2710.4,6.68942]
[1739543845916,8.19084,2711.1,2710.5,3.68928]
[1739543846110,8.19084,2711.1,2710.4,3.68942]
[1739543846111,3.68881,2710.9,2710.4,3.68942]
[1739543846315,3.68881,2710.9,2710.3,0.369703]
[1739543846668,3.68875,2711.0,2710.4,3.68939]
[1739543846817,3.68875,2711.0,2710.4,7.37881]
[1739543847015,4.50221,2711.1,2710.4,3.68939]
[1739543847339,3.68906,2710.8,2710.2,3.68967]
[1739543847517,3.6891,2710.7,2710.2,3.68967]
[1739543847715,3.6891,2710.7,2710.2,7.37935]
[1739543848019,0.03697846,2710.6,2710.0,3.68991]
[1739543848220,3.68916,2710.7,2710.0,3.68991]
[1739543848435,7.37835,2710.7,2710.1,3.68982]
[1739543848635,8.20191225,2710.7,2710.1,3.68982]
[1739543848855,4.51272225,2710.7,2710.0,3.68991]
[1739543849033,3.68916,2710.7,2710.2,3.68965]
[1739543849236,3.68916,2710.7,2710.2,7.37934]
[1739543849451,3.68916,2710.7,2710.2,3.68965]
[1739543849945,4.50256,2710.8,2710.3,3.6896]
[1739543850147,0.8136,2710.8,2710.3,0.737944]
[1739543850356,0.8136,2710.8,2710.4,3.68949]
[1739543850819,0.8136,2710.8,2710.5,3.68932]
[1739543851022,0.7535,2711.2,2710.6,3.68921]
[1739543851359,3.68874,2711.0,2710.5,3.6893]
[1739543851544,4.44202,2711.2,2710.6,3.68913]
[1739543851945,4.44202,2711.2,2710.7,3.68906]
[1739543852146,3.68856,2711.1,2710.6,3.6892]
[1739543852346,3.68856,2711.1,2710.5,3.68935]
[1739543852663,0.03697846,2711.0,2710.0,0.5252]
[1739543852839,3.68895,2710.8,2710.3,3.6896]
[1739543853056,3.68929,2710.6,2710.1,3.6899]
[1739543853256,3.6893,2710.6,2710.1,3.68987]
[1739543853591,3.6893,2710.6,2710.1,4.427869]
[1739543853883,3.6891,2710.7,2710.2,3.68965]
[1739543854086,4.4424,2710.9,2710.2,3.68965]
[1739543854289,3.68895,2710.8,2710.3,3.68961]
[1739543854588,3.68935,2710.5,2710.3,0.34350839]
[1739543854894,4.887275,2710.4,2710.3,0.34350839]
[1739543855097,4.92425346,2710.4,2710.3,0.34350839]
[1739543855385,4.887275,2710.4,2710.3,0.34350839]
[1739543855995,7.92425346,2710.4,2710.3,0.34350839]
[1739543856152,3.6902,2709.9,2709.2,3.69103]
[1739543856354,3.68995,2710.1,2709.6,4.03456452]
[1739543856691,3.68977,2710.2,2709.7,3.69042]
[1739543856862,3.6898,2710.2,2709.6,0.34404452]
[1739543857099,3.6898,2710.2,2709.7,3.6904]
[1739543857403,0.8232,2710.3,2710.0,3.68992]
[1739543857696,4.51283,2710.3,2709.8,3.69021]
[1739543857920,4.51283,2710.3,2709.8,7.38044]
[1739543858049,4.51283,2710.3,2709.8,3.69021]
[1739543858418,3.68978,2710.2,2709.7,0.77250745]
[1739543858687,0.8232,2710.3,2709.8,3.69022]
[1739543858986,0.8232,2710.3,2709.9,3.69008]
[1739543859292,0.8232,2710.3,2710.0,3.69003]
[1739543859653,0.8232,2710.3,2709.8,3.69022]
[1739543859851,4.51295,2710.3,2709.8,3.69029]
[1739543860054,0.8232,2710.3,2709.9,3.69015]
[1739543860391,4.51194,2711.0,2710.4,3.68941]
[1739543860593,3.68881,2710.9,2710.2,7.37929]
[1739543860817,3.68909,2710.7,2710.2,3.68963]
[1739543861150,3.68888,2710.9,2710.2,3.68963]
[1739543861351,3.68902,2710.8,2710.2,7.748253]
[1739543861776,3.68902,2710.8,2710.2,4.058593]
[1739543862100,3.68912,2710.7,2710.2,4.058593]
[1739543862588,7.37781,2710.9,2710.4,3.68946]
[1739543862789,0.8232,2711.0,2710.5,3.68932]
[1739543862997,0.8232,2711.0,2710.4,3.68946]
[1739543862998,0.8232,2711.0,2710.4,3.6894]
[1739543863170,7.37781,2710.9,2710.4,3.6894]
[1739543863494,0.8232,2711.0,2710.4,0.7748033]
[1739543863796,0.8232,2711.0,2710.2,0.368963]
[1739543864091,0.8232,2711.0,2710.3,3.68949]
[1739543864295,3.68883,2710.9,2710.4,3.68938]
[1739543864591,4.54891846,2711.0,2710.3,3.68949]
[1739543864758,3.68895,2710.8,2710.3,3.68949]
[1739543864952,4.51194,2711.0,2710.3,4.7643163]
[1739543865154,4.51194,2711.0,2710.5,3.68928]
[1739543865779,0.8232,2711.0,2710.5,3.68935]
[1739543865968,0.8232,2711.0,2710.6,3.68913]
[1739543866296,0.04229501,2710.9,2710.7,3.68908]
[1739543866496,3.68856,2711.1,2710.6,3.68913]
[1739543866802,0.04219182,2710.8,2710.6,3.68921]
[1739543867003,4.51151,2711.3,2710.7,3.72587904]
[1739543867297,4.51151,2711.3,2710.7,7.378]
[1739543867481,3.68841,2711.2,2710.7,3.68899]
[1739543867668,0.8232,2711.3,2710.8,3.68889]
[1739543867856,4.51153,2711.3,2710.8,3.68889]
[1739543868289,5.5e-06,2711.4,2710.9,3.6888]
[1739543868687,5.5e-06,2711.4,2710.9,3.68872]
[1739543868898,3.6882355,2711.4,2710.9,3.68872]
[1739543869100,3.68848,2711.2,2710.6,3.68913]
[1739543869265,3.6883,2711.3,2710.6,3.68922]
[1739543869460,7.37667,2711.3,2710.7,4.139442]
[1739543869662,0.04325184,2711.2,2710.7,4.139442]
[1739543869896,0.04325184,2711.2,2710.8,3.68894]
[1739543870059,3.6883,2711.3,2710.8,3.68894]
[1739543870260,0.04313496,2711.1,2710.8,3.68894]
[1739543870495,3.68845,2711.2,2710.8,0.7828522]
[1739543870821,5.5e-06,2711.4,2710.8,0.7828522]
[1739543870822,0.04301807,2711.0,2710.8,0.7828522]
[1739543870970,3.68841,2711.2,2710.8,3.68885]
[1739543871170,0.04290117,2710.9,2710.8,3.68894]
[1739543871474,0.04290117,2710.9,2710.7,3.68906]
[1739543871475,0.04307091,2710.9,2710.7,3.68906]
[1739543871663,3.68853,2711.2,2710.7,3.68906]
[1739543871863,0.04293962,2710.8,2710.7,3.68898]
[1739543872097,3.68828,2711.3,2710.8,3.68883]
[1739543872256,0.042954,2710.8,2710.7,8.197329]
[1739543872461,5.5e-06,2711.4,2710.7,0.819349]
[1739543872690,5.5e-06,2711.4,2711.3,3.68826]
[1739543873201,5.5e-06,2711.4,2711.2,4.49369]
[1739543873425,0.04283627,2711.4,2711.2,4.49369]
[1739543873556,5.5e-06,2711.4,2711.2,0.8053]
[1739543873925,5.5e-06,2711.4,2711.2,3.6884]
[1739543873926,0.04279353,2711.3,2711.2,3.6884]
[1739543874077,0.04279353,2711.3,2711.2,4.4261]
[1739543875164,0.04279353,2711.3,2711.2,4.46297748]
[1739543875364,0.04279353,2711.3,2711.2,4.4261]
[1739543875567,5.5e-06,2711.4,2711.3,3.68826]
[1739543876230,5.5e-06,2711.4,2711.3,3.72513725]
[1739543876401,5.5e-06,2711.4,2711.3,4.54026098]
[1739543876723,5.5e-06,2711.4,2711.3,4.50338373]
[1739543876899,0.04124601,2711.4,2711.3,0.81512373]
[1739543877079,0.04124601,2711.4,2711.2,3.68832]
[1739543877632,0.04124601,2711.4,2711.3,3.68826]
[1739543878613,0.04124601,2711.4,2711.0,6.68859]
[1739543878831,0.04124601,2711.4,2711.0,3.68859]
[1739543878961,0.04124601,2711.4,2711.1,3.68853]
[1739543880204,0.04124601,2711.4,2710.9,4.49398]
[1739543880455,0.04124601,2711.4,2710.9,1.254698]
[1739543880607,3.68852,2711.2,2710.5,4.77757]
[1739543880961,0.04145283,2711.1,2710.8,3.68885]
[1739543881101,0.04145283,2711.1,2710.8,3.72573537]
[1739543881305,0.7758,2711.3,2710.8,3.72573537]
[1739543881563,0.04124457,2711.0,2710.8,3.68885]
[1739543881765,5.5e-06,2711.4,2710.9,3.72569472]
[1739543881903,3.6881655,2711.4,2710.8,0.737792]
[1739543882106,3.68847,2711.2,2710.7,3.68901]
[1739543882464,0.04143339,2711.1,2710.7,3.689]
[1739543882757,0.04143339,2711.1,2711.0,3.68867]
[1739543883263,5.5e-06,2711.4,2711.2,3.68837]
[1739543883403,5.5e-06,2711.4,2711.2,3.7252501]
[1739543883605,5.5e-06,2711.4,2711.2,3.68837]
[1739543883859,5.5e-06,2711.4,2711.3,3.68826]
[1739543884368,0.03932211,2711.4,2711.3,3.68826]
[1739543884571,5.5e-06,2711.4,2711.0,3.68865]
[1739543884775,5.5e-06,2711.4,2710.8,4.49412]
[1739543885083,0.03990396,2711.3,2710.8,4.49415]
[1739543885380,3.72824396,2711.3,2710.6,10.37824]
[1739543885522,3.68848,2711.2,2710.7,3.68901]
[1739543885721,0.03988341,2711.2,2710.8,3.68892]
[1739543886116,7.19475709,2711.4,2710.8,3.68887]
[1739543886317,0.03976309,2711.1,2711.0,3.68855]
[1739543886561,5.5e-06,2711.4,2711.0,0.8267]
[1739543886814,0.03946649,2711.1,2711.0,0.8267]
[1739543886981,3.6884,2711.2,2710.7,3.8267]
[1739543887183,0.0397115,2711.1,2710.7,7.51577]
[1739543887326,0.0397115,2711.1,2710.7,4.51577]
[1739543887526,0.0397115,2711.1,2710.6,3.68913]
[1739543887764,0.0397115,2711.1,2710.8,3.68892]
[1739543888163,0.0397115,2711.1,2710.7,3.68905]
[1739543888359,0.0397115,2711.1,2710.8,3.68894]
[1739543888565,0.0397115,2711.1,2710.8,7.3778]
[1739543889224,0.0397115,2711.1,2711.0,3.68867]
[1739543889441,3.50661709,2711.4,2710.8,3.68886]
[1739543889442,7.19483709,2711.4,2710.8,3.68886]
[1739543889644,0.03939469,2711.3,2710.9,3.68869]
[1739543890098,0.03939469,2711.3,2710.9,7.37741]
[1739543890389,0.03939469,2711.3,2710.9,3.68869]
[1739543890698,0.7782,2711.2,2710.1,4.26127422]
[1739543890829,0.7782,2710.9,2709.6,4.51716]
[1739543891023,0.03842815,2710.8,2710.1,3.68979]
[1739543891224,0.03842815,2710.8,2710.3,3.68958]
[1739543891749,3.72738815,2710.8,2710.1,3.68978]
[1739543891948,3.72742815,2710.8,2710.1,3.68978]
[1739543892383,3.68925,2710.6,2710.0,6.68999]
[1739543892592,3.68925,2710.6,2710.2,0.3432451]
[1739543892882,3.727095,2710.5,2710.2,0.3432451]
[1739543893382,0.037735,2710.5,2710.0,0.3432451]
[1739543893588,0.037735,2710.5,2710.3,3.68962]
[1739543893800,0.7782,2710.9,2710.4,3.68949]
[1739543894084,0.7782,2710.9,2710.4,4.51376001]
[1739543894265,0.7782,2710.9,2710.4,0.82427001]
[1739543894473,0.7782,2711.3,2710.6,3.68911]
[1739543894775,4.46656,2711.3,2710.6,3.68911]
[1739543895826,4.46656,2711.3,2710.7,3.68907]
[1739543896030,0.7782,2711.3,2710.8,3.68885]
[1739543896228,5.5e-06,2711.4,2711.2,3.68829]
[1739543896428,5.5e-06,2711.4,2711.0,0.8267]
[1739543896668,5.5e-06,2711.4,2711.0,3.68859]
[1739543896883,5.5e-06,2711.4,2711.1,3.68848]
[1739543897040,5.5e-06,2711.4,2711.1,4.426184]
[1739543897245,0.0369875,2711.3,2711.1,4.426184]
[1739543897646,0.0369875,2711.3,2711.1,1.0809491]
[1739543897842,5.5e-06,2711.4,2711.1,0.3432451]
[1739543898078,0.03712457,2711.3,2711.1,4.0316951]
[1739543898467,0.03712457,2711.3,2711.1,0.3432451]
[1739543898803,0.03712457,2711.3,2711.1,4.0317351]
[1739543898946,0.03712457,2711.3,2711.1,0.3432451]
[1739543899149,0.03712457,2711.3,2711.0,6.68858]
[1739543899420,0.03712457,2711.3,2711.1,4.357298]
[1739543899693,0.03712457,2711.3,2711.2,3.6884]
[1739543900394,0.03712457,2711.3,2711.2,0.34290125]
[1739543900596,0.03712457,2711.3,2711.2,4.03130125]
[1739543901393,0.03712457,2711.3,2711.2,0.34290125]
[1739543901792,5.5e-06,2711.4,2711.3,7.51576]
[1739543902001,5.5e-06,2711.4,2711.3,8.08076]
[1739543902166,5.5e-06,2711.4,2711.3,7.25326]
[1739543902369,0.793,2712.6,2712.1,3.68717]
[1739543902606,3.68687,2712.4,2711.8,3.0]
[1739543902805,0.793,2712.6,2711.9,4.38472]
[1739543902965,4.47962,2712.6,2711.9,4.3847]
[1739543903178,8.16623,2712.6,2712.0,3.68719]
[1739543903415,4.47961,2712.6,2712.0,3.68719]
[1739543903725,4.47961,2712.6,2711.9,0.69736]
[1739543903726,0.793,2712.6,2712.2,3.68704]
[1739543903935,0.793,2712.6,2712.3,3.68688]
[1739543904064,3.68633,2712.8,2712.2,7.41084606]
[1739543904386,4.47915,2712.9,2712.4,3.68674]
[1739543904588,4.47915,2712.9,2712.2,4.47187011]
[1739543904789,4.47915,2712.9,2712.3,3.68686]
[1739543905003,0.793,2712.9,2712.5,3.68653]
[1739543905206,4.47855,2713.3,2712.6,3.6865]
[1739543905365,8.16422,2713.3,2712.6,3.6864]
[1739543905705,4.47855,2713.3,2712.6,3.6864]
[1739543906016,3.68608,2713.0,2712.4,3.68671]
[1739543906195,0.793,2713.3,2712.3,3.0]
[1739543906401,3.68568,2713.2,2712.4,4.51661701]
[1739543906607,3.68568,2713.2,2712.6,3.68649]
[1739543907170,3.68568,2713.2,2712.4,4.51661701]
[1739543907486,3.68591,2713.1,2712.4,4.51661701]
[1739543907687,0.793,2713.3,2712.7,0.015]
[1739543907898,0.793,2713.3,2713.0,3.68595]
[1739543908167,0.005,2713.4,2712.9,4.5135]
[1739543908582,0.005,2713.4,2712.8,4.05624]
[1739543908929,0.005,2713.4,2713.0,3.68586]
[1739543909104,0.005,2713.4,2713.1,3.68572]
[1739543909426,0.005,2713.4,2713.2,3.68565]
[1739543909675,0.005,2713.4,2713.1,3.68581]
[1739543909888,5.1878,2713.2,2712.2,1.56286304]
[1739543910181,0.793,2712.7,2712.2,0.73536304]
[1739543910364,4.4794,2712.7,2712.2,0.73536304]
[1739543910566,3.68673,2712.5,2711.9,3.68744]
[1739543910724,3.68673,2712.5,2711.6,1.1145]
[1739543910725,0.793,2712.7,2711.7,3.68761]
[1739543910931,0.793,2712.5,2711.9,3.68743]
[1739543911163,0.793,2712.5,2712.1,3.68709]
[1739543911761,0.793,2712.5,2712.3,3.68686]
[1739543911955,0.793,2712.9,2712.5,3.68655]
[1739543912159,4.47919,2712.9,2712.3,3.68686]
[1739543912686,1.240919,2712.9,2712.5,3.68662]
[1739543912820,1.240919,2712.9,2711.9,4.51486]
[1739543912821,0.793,2712.9,2712.6,3.68646]
[1739543913023,0.793,2712.9,2712.5,3.68663]
[1739543913251,0.793,2712.9,2712.4,3.68672]
[1739543913609,0.793,2712.9,2712.4,3.68669]